lending/lending_fUSD_20241120
["ID","MTS","AMOUNT","RATE_DAILY","PERIOD"]
[342780416,1732140696014,-500.0,0.00055342,120]
[342780417,1732140696030,-7043.87,0.00055342,120]
[342780418,1732140696045,-580.25,0.00055342,120]
[342780419,1732140696060,-500.0,0.00055342,120]
[342780420,1732140696076,-151.0,0.00055342,120]
[342780421,1732140696101,-500.0,0.00055342,120]
[342780422,1732140696117,-604.62,0.00055342,120]
[342780423,1732140696136,-500.0,0.00055342,120]
[342780424,1732140696152,-8863.78,0.00055342,120]
[342780425,1732140696169,-2040.5,0.00055342,120]
[342780426,1732140696184,-1500.0,0.00055342,120]
[342780427,1732140696200,-500.0,0.00055342,120]
[342780428,1732140696215,-500.0,0.00055342,120]
[342780429,1732140696231,-152.611206,0.00055342,110]
[342780430,1732140696247,-2305.42,0.00055342,120]
[342780431,1732140696262,-500.0,0.00055342,120]
[342780432,1732140696278,-500.0,0.00055342,30]
[342780433,1732140696294,-762.69,0.00055342,120]
[342780434,1732140696312,-1604.28,0.00055342,120]
[342780435,1732140696328,-713.08,0.00055342,120]
[342780436,1732140696343,-500.0,0.00055342,120]
[342780437,1732140696359,-500.0,0.00055342,120]
[342780438,1732140696375,-500.0,0.00055342,120]
[342780439,1732140696391,-500.0,0.00055342,120]
[342780440,1732140696409,-500.0,0.00055342,120]
[342780441,1732140696424,-1101.03,0.00055342,120]
[342780442,1732140696440,-500.0,0.00055342,120]
[342780443,1732140696456,-1320.75,0.00055342,120]
[342780444,1732140696471,-500.0,0.00055342,120]
[342780445,1732140696487,-1100.57,0.00055342,120]
[342780446,1732140696503,-500.0,0.00055342,120]
[342780447,1732140696517,-500.0,0.00055342,120]
[342780448,1732140696533,-176.573386,0.00055342,120]
[342780449,1732140696549,-500.0,0.00055342,120]
[342780450,1732140696565,-5594.76,0.00055342,120]
[342780451,1732140696580,-500.0,0.00055342,120]
[342780452,1732140696594,-561.2,0.00055342,120]
[342780453,1732140696608,-500.0,0.00055342,120]
[342780454,1732140696624,-918.38,0.00055342,120]
[342780455,1732140696641,-500.0,0.00055342,120]
[342780456,1732140696657,-500.0,0.00055342,120]
[342780457,1732140696672,-3670.68,0.00055342,120]
[342780458,1732140696688,-500.0,0.00055342,90]
[342780459,1732140696704,-176.573386,0.00055342,120]
[342780460,1732140696718,-500.0,0.00055342,30]
[342780461,1732140696733,-500.0,0.00055342,120]
[342780462,1732140696749,-529.1997997,0.00055342,120]
[342780463,1732140696765,-966.97,0.00055342,120]
[342780464,1732140696779,-2110.0,0.0005538,30]
[342780465,1732140696795,-150.0,0.00055392,120]
[342780466,1732140696810,-500.0,0.00055616,7]
[342780467,1732140696825,-597.23,0.00055616,120]
[342780468,1732140696839,-500.0,0.00055616,120]
[342780469,1732140696854,-2690.903891,0.00055616,120]
[342780470,1732140696869,-2690.903891,0.00055616,120]
[342780471,1732140696885,-500.0,0.00055616,120]
[342780472,1732140696900,-224.51295521,0.00055616,120]
[342780473,1732140696915,-500.0,0.00055616,120]
[342780474,1732140696930,-500.0,0.00055616,120]
[342780475,1732140696946,-500.0,0.00055616,120]
[342780476,1732140696963,-500.0,0.00055616,120]
[342780477,1732140696979,-500.0,0.00055616,120]
[342780478,1732140696993,-500.0,0.00055616,120]
[342780479,1732140697008,-500.0,0.00055616,120]
[342780480,1732140697022,-500.0,0.00055616,120]
[342780481,1732140697038,-480.75475124,0.00055616,120]
[342780482,1732140697053,-500.0,0.00055616,120]
[342780483,1732140697068,-500.0,0.00055616,120]
[342780484,1732140697084,-468.48180382,0.00055616,120]
[342780485,1732140697099,-500.0,0.00055616,120]
[342780486,1732140697114,-500.0,0.00055616,120]
[342780487,1732140697131,-571.64828126,0.00055616,120]
[342780488,1732140697145,-500.0,0.00055616,120]
[342780489,1732140697160,-500.0,0.00055616,120]
[342780490,1732140697177,-243.77175257,0.00055616,120]
[342780491,1732140697191,-500.0,0.00055616,120]
[342780492,1732140697209,-500.0,0.00055616,120]
[342780493,1732140697224,-210.928221,0.00055616,120]
[342780494,1732140697235,-155.055593,0.00055616,120]
[342780495,1732140697244,-260.413462,0.00055616,120]
[342780496,1732140697254,-500.0,0.00055616,120]
[342780497,1732140697263,-789.82,0.00055616,120]
[342780498,1732140697272,-907.52,0.00055616,120]
[342780499,1732140697283,-676.32,0.00055616,120]
[342780500,1732140697293,-500.0,0.00055616,120]
[342780501,1732140697303,-500.0,0.00055616,120]
[342780502,1732140697312,-690.77,0.00055616,120]
[342780503,1732140697321,-500.0,0.00055616,120]
[342780504,1732140697330,-500.0,0.00055616,120]
[342780505,1732140697340,-179.18759441,0.00055616,120]
[342780506,1732140697349,-500.0,0.00055616,120]
[342780507,1732140697810,-196.96378501,0.00055616,120]
[342780508,1732140697839,-500.0,0.00055616,120]
[342780509,1732140697871,-500.0,0.00055616,120]
[342780510,1732140697888,-500.0,0.00055616,120]
[342780511,1732140697897,-500.0,0.00055616,120]
[342780512,1732140697911,-459.37876191,0.00055616,120]
[342780513,1732140697920,-500.0,0.00055616,120]
[342780514,1732140697930,-500.0,0.00055616,120]
[342780515,1732140697940,-500.0,0.00055616,30]
[342780516,1732140697950,-500.0,0.00055616,120]
[342780517,1732140697959,-500.0,0.00055616,120]
[342780518,1732140697969,-500.0,0.00055616,120]
[342780519,1732140697978,-802.91,0.00055616,120]
[342780520,1732140697987,-500.0,0.00055616,120]
[342780521,1732140697997,-1078.99,0.00055616,120]
[342780522,1732140698006,-500.0,0.00055616,120]
[342780523,1732140698015,-1196.86,0.00055616,120]
[342780524,1732140698024,-1553.66,0.00055616,120]
[342780525,1732140698033,-500.0,0.00055616,120]
[342780526,1732140698043,-500.0,0.00055616,120]
[342780527,1732140698052,-500.0,0.00055616,120]
[342780528,1732140698061,-500.0,0.00055616,120]
[342780529,1732140698070,-1468.02,0.00055616,120]
[342780530,1732140698079,-500.0,0.00055616,120]
[342780531,1732140698089,-500.0,0.00055616,120]
[342780532,1732140698099,-500.0,0.00055616,120]
[342780533,1732140698108,-500.0,0.00055616,120]
[342780534,1732140698118,-500.0,0.00055616,120]
[342780535,1732140698131,-1204.33,0.00055616,120]
[342780536,1732140698140,-500.0,0.00055616,120]
[342780537,1732140698149,-689.54,0.00055616,120]
[342780538,1732140698159,-500.0,0.00055616,120]
[342780539,1732140698169,-500.0,0.00055616,120]
[342780540,1732140698178,-500.0,0.00055616,120]
[342780541,1732140698188,-275.976978,0.00055616,120]
[342780542,1732140698199,-500.0,0.00055616,120]
[342780543,1732140698208,-500.0,0.00055616,120]
[342780544,1732140698218,-500.0,0.00055616,120]
[342780545,1732140698227,-500.0,0.00055616,120]
[342780546,1732140698237,-500.0,0.00055616,120]
[342780547,1732140698247,-500.0,0.00055616,120]
[342780548,1732140698257,-500.0,0.00055616,7]
[342780549,1732140698267,-500.0,0.00055616,120]
[342780550,1732140698278,-3362.7,0.00055616,120]
[342780551,1732140698287,-500.0,0.00055616,120]
[342780552,1732140698296,-500.0,0.00055616,120]
[342780553,1732140698306,-500.0,0.00055616,120]
[342780554,1732140698316,-500.0,0.00055616,120]
[342780555,1732140698325,-150.0,0.00055616,120]
[342780556,1732140698334,-2907.27,0.00055616,120]
[342780557,1732140698343,-1034.08,0.00055616,120]
[342780558,1732140698352,-500.0,0.00055616,120]
[342780559,1732140698362,-500.0,0.00055616,120]
[342780560,1732140698374,-500.0,0.00055616,120]
[342780561,1732140698383,-500.0,0.00055616,120]
[342780562,1732140698392,-500.0,0.00055616,120]
[342780563,1732140698402,-500.0,0.00055616,120]
[342780564,1732140698412,-500.0,0.00055616,120]
[342780565,1732140698421,-5000.0,0.00055616,120]
[342780566,1732140698432,-500.0,0.00055616,120]
[342780567,1732140698441,-500.0,0.00055616,120]
[342780568,1732140698451,-1141.42,0.00055616,120]
[342780569,1732140698460,-577.45,0.00055616,120]
[342780570,1732140698470,-691.51,0.00055616,120]
[342780571,1732140698480,-500.0,0.00055616,120]
[342780572,1732140698490,-500.0,0.00055616,120]
[342780573,1732140698499,-1067.52,0.00055616,120]
[342780574,1732140698509,-500.0,0.00055616,120]
[342780575,1732140698518,-500.0,0.00055616,120]
[342780576,1732140698528,-1047.06,0.00055616,120]
[342780577,1732140698538,-500.0,0.00055616,120]
[342780578,1732140698548,-500.0,0.00055616,2]
[342780579,1732140698557,-1588.94,0.00055616,120]
[342780580,1732140698567,-500.0,0.00055616,120]
[342780581,1732140698576,-500.0,0.00055616,14]
[342780582,1732140698585,-500.0,0.00055616,120]
[342780583,1732140698595,-826.46,0.00055616,120]
[342780584,1732140698604,-500.0,0.00055616,120]
[342780585,1732140698614,-500.0,0.00055616,120]
[342780586,1732140698623,-883.47,0.00055616,120]
[342780587,1732140698633,-500.0,0.00055616,120]
[342780588,1732140698642,-1125.72,0.00055616,120]
[342780589,1732140698652,-500.0,0.00055616,120]
[342780590,1732140698661,-151.0,0.00055616,120]
[342780591,1732140698671,-500.0,0.00055616,120]
[342780592,1732140698681,-500.0,0.00055616,120]
[342780593,1732140698690,-500.0,0.00055616,120]
[342780594,1732140698699,-349.53117302,0.00055616,120]
[342780595,1732140698709,-1198.91,0.00055616,120]
[342780596,1732140698719,-1116.01,0.00055616,120]
[342780597,1732140698728,-500.0,0.00055616,120]
[342780598,1732140698737,-500.0,0.00055616,120]
[342780599,1732140698747,-500.0,0.00055616,120]
[342780600,1732140698756,-500.0,0.00055616,120]
[342780601,1732140698765,-500.0,0.00055616,120]
[342780602,1732140698775,-500.0,0.00055616,120]
[342780603,1732140698784,-500.0,0.00055616,120]
[342780604,1732140698793,-1410.51,0.00055616,120]
[342780605,1732140698804,-500.0,0.00055616,120]
[342780606,1732140698813,-278.87810292,0.00055616,120]
[342780607,1732140698823,-500.0,0.00055616,120]
[342780608,1732140698833,-500.0,0.00055616,120]
[342780609,1732140698843,-508.72,0.00055616,120]
[342780610,1732140698852,-500.64691181,0.00055616,120]
[342780611,1732140698862,-500.0,0.00055616,120]
[342780612,1732140698871,-500.0,0.00055616,120]
[342780613,1732140698880,-501.02,0.00055616,120]
[342780614,1732140698890,-151.0,0.00055616,120]
[342780615,1732140698899,-500.0,0.00055616,120]
[342780616,1732140698910,-625.70004117,0.00055616,120]
[342780617,1732140698920,-854.5,0.00055616,120]
[342780618,1732140698929,-500.0,0.00055616,120]
[342780619,1732140698938,-151.0,0.00055616,120]
[342780620,1732140698948,-500.0,0.00055616,120]
[342780621,1732140698957,-500.0,0.00055616,120]
[342780622,1732140698966,-500.0,0.00055616,120]
[342780623,1732140698976,-923.86,0.00055616,120]
[342780624,1732140698986,-500.0,0.00055616,60]
[342780625,1732140698995,-151.0,0.00055616,120]
[342780626,1732140699004,-1843.46,0.00055616,120]
[342780627,1732140699014,-810.6,0.00055616,120]
[342780628,1732140699023,-500.0,0.00055616,120]
[342780629,1732140699032,-500.0,0.00055616,120]
[342780630,1732140699042,-500.0,0.00055616,120]
[342780631,1732140699052,-500.0,0.00055616,120]
[342780632,1732140699061,-909.22,0.00055616,120]
[342780633,1732140699071,-500.0,0.00055616,120]
[342780634,1732140699080,-500.0,0.00055616,120]
[342780635,1732140699090,-500.0,0.00055616,120]
[342780636,1732140699099,-533.52,0.00055616,120]
[342780637,1732140699109,-500.0,0.00055616,120]
[342780638,1732140699118,-500.0,0.00055616,120]
[342780639,1732140699130,-500.0,0.00055616,120]
[342780640,1732140699140,-2415.23,0.00055616,120]
[342780641,1732140699149,-500.0,0.00055616,120]
[342780642,1732140699160,-972.8,0.00055616,120]
[342780643,1732140699171,-500.0,0.00055616,120]
[342780644,1732140699180,-1624.46,0.00055616,120]
[342780645,1732140699189,-500.0,0.00055616,120]
[342780646,1732140699198,-500.0,0.00055616,120]
[342780647,1732140699209,-500.0,0.00055616,120]
[342780648,1732140699219,-530.46,0.00055616,120]
[342780649,1732140699228,-150.0,0.00055616,120]
[342780650,1732140699238,-500.0,0.00055616,120]
[342780651,1732140699247,-730.89,0.00055616,120]
[342780652,1732140699256,-500.0,0.00055616,60]
[342780653,1732140699265,-500.0,0.00055616,120]
[342780654,1732140699274,-500.0,0.00055616,120]
[342780655,1732140699284,-500.0,0.00055616,120]
[342780656,1732140699294,-500.0,0.00055616,120]
[342780657,1732140699303,-151.0,0.00055616,120]
[342780658,1732140699313,-615.39,0.00055616,120]
[342780659,1732140699323,-1000.0,0.00055616,2]
[342780660,1732140699332,-500.0,0.00055616,120]
[342780661,1732140699341,-500.0,0.00055616,120]
[342780662,1732140699351,-500.0,0.00055616,120]
[342780663,1732140699360,-500.0,0.00055616,120]
[342780664,1732140699369,-515.66,0.00055616,120]
[342780665,1732140699378,-500.0,0.00055616,120]
[342780666,1732140699387,-783.6,0.00055616,120]
[342780667,1732140699397,-500.0,0.00055616,120]
[342780668,1732140699407,-1852.69,0.00055616,120]
[342780669,1732140699416,-713.08,0.00055616,120]
[342780670,1732140699425,-524.36,0.00055616,120]
[342780671,1732140699435,-500.0,0.00055616,120]
[342780672,1732140699444,-500.0,0.00055616,120]
[342780673,1732140699453,-200.87998559,0.00055616,120]
[342780674,1732140699462,-500.0,0.00055616,120]
[342780675,1732140699471,-500.0,0.00055616,120]
[342780676,1732140699481,-500.0,0.00055616,120]
[342780677,1732140699491,-500.0,0.00055616,120]
[342780678,1732140699500,-500.0,0.00055616,120]
[342780679,1732140699510,-729.05,0.00055616,120]
[342780680,1732140699520,-500.0,0.00055616,120]
[342780681,1732140699529,-291.184775,0.00055616,120]
[342780682,1732140699538,-500.0,0.00055616,120]
[342780683,1732140699548,-2435.5,0.00055616,120]
[342780684,1732140699557,-500.0,0.00055616,120]
[342780685,1732140699567,-521.8,0.00055616,120]
[342780686,1732140699576,-642.48,0.00055616,120]
[342780687,1732140699585,-849.85,0.00055616,120]
[342780688,1732140699594,-627.45,0.00055616,120]
[342780689,1732140699605,-500.0,0.00055616,120]
[342780690,1732140699614,-742.62,0.00055616,120]
[342780691,1732140699623,-500.0,0.00055616,120]
[342780692,1732140699633,-500.0,0.00055616,120]
[342780693,1732140699643,-858.26,0.00055616,120]
[342780694,1732140699652,-500.0,0.00055616,120]
[342780695,1732140699667,-503.51,0.00055616,120]
[342780696,1732140699677,-500.0,0.00055616,120]
[342780697,1732140699686,-611.4198012,0.00055616,120]
[342780698,1732140699695,-2800.08,0.00055616,120]
[342780699,1732140699705,-500.0,0.00055616,120]
[342780700,1732140699714,-500.0,0.00055616,120]
[342780701,1732140699724,-500.0,0.00055616,120]
[342780702,1732140699734,-563.45,0.00055616,120]
[342780703,1732140699743,-500.0,0.00055616,120]
[342780704,1732140699753,-500.0,0.00055616,120]
[342780705,1732140699762,-500.0,0.00055616,120]
[342780706,1732140699772,-1104.08,0.00055616,120]
[342780707,1732140699782,-500.0,0.00055616,120]
[342780708,1732140699791,-599.59205786,0.00055616,120]
[342780709,1732140699800,-500.0,0.00055616,120]
[342780710,1732140699809,-1222.85,0.00055616,120]
[342780711,1732140699818,-500.0,0.00055616,120]
[342780712,1732140699827,-500.0,0.00055616,120]
[342780713,1732140699837,-500.0,0.00055616,120]
[342780714,1732140699846,-151.0,0.00055616,120]
[342780715,1732140699856,-1021.61,0.00055616,120]
[342780716,1732140699865,-284.185201,0.00055616,120]
[342780717,1732140699874,-578.33,0.00055616,120]
[342780718,1732140699885,-500.0,0.00055616,120]
[342780719,1732140699894,-500.0,0.00055616,120]
[342780720,1732140699906,-1661.17,0.00055616,120]
[342780721,1732140699915,-500.0,0.00055616,120]
[342780722,1732140699924,-500.0,0.00055616,120]
[342780723,1732140699934,-157.497523,0.00055616,120]
[342780724,1732140699943,-500.0,0.00055616,120]
[342780725,1732140699952,-800.14,0.00055616,120]
[342780726,1732140699961,-584.08382006,0.00055616,120]
[342780727,1732140699971,-500.0,0.00055616,120]
[342780728,1732140699980,-157.497523,0.00055616,120]
[342780729,1732140699989,-500.0,0.00055616,120]
[342780730,1732140699998,-1090.19,0.00055616,120]
[342780731,1732140700007,-1054.3,0.00055616,120]
[342780732,1732140700017,-500.0,0.00055616,120]
[342780733,1732140700027,-1209.25,0.00055616,120]
[342780734,1732140700036,-500.0,0.00055616,120]
[342780735,1732140700045,-1127.18,0.00055616,120]
[342780736,1732140700054,-500.0,0.00055616,120]
[342780737,1732140700064,-500.0,0.00055616,120]
[342780738,1732140700074,-454.76792217,0.00055616,120]
[342780739,1732140700083,-500.0,0.00055616,120]
[342780740,1732140700092,-500.0,0.00055616,120]
[342780741,1732140700101,-500.0,0.00055616,120]
[342780742,1732140700111,-208.735244,0.00055616,120]
[342780743,1732140700121,-500.0,0.00055616,120]
[342780744,1732140700134,-1267.34,0.00055616,120]
[342780745,1732140700144,-500.0,0.00055616,120]
[342780746,1732140700155,-2432.38,0.00055616,7]
[342780747,1732140700164,-500.0,0.00055616,120]
[342780748,1732140700175,-500.0,0.00055616,120]
[342780749,1732140700184,-500.0,0.00055616,120]
[342780750,1732140700193,-1560.72,0.00055616,120]
[342780751,1732140700204,-500.0,0.00055616,120]
[342780752,1732140700214,-655.09,0.00055616,120]
[342780753,1732140700224,-500.0,0.00055616,120]
[342780754,1732140700234,-500.0,0.00055616,120]
[342780755,1732140700243,-1047.78,0.00055616,120]
[342780756,1732140700253,-500.0,0.00055616,120]
[342780757,1732140700263,-349.533809,0.00055616,120]
[342780758,1732140700272,-208.735244,0.00055616,120]
[342780759,1732140700282,-1376.36,0.00055616,120]
[342780760,1732140700291,-758.47,0.00055616,120]
[342780761,1732140700301,-500.0,0.00055616,120]
[342780762,1732140700311,-349.533809,0.00055616,120]
[342780763,1732140700320,-1218.68,0.00055616,120]
[342780764,1732140700330,-1031.21,0.00055616,120]
[342780765,1732140700340,-500.0,0.00055616,120]
[342780766,1732140700350,-504.52845136,0.00055616,120]
[342780767,1732140700359,-746.97,0.00055616,120]
[342780768,1732140700369,-500.0,0.00055616,120]
[342780769,1732140700378,-500.0,0.00055616,120]
[342780770,1732140700389,-500.0,0.00055616,120]
[342780771,1732140700399,-1956.13,0.00055616,120]
[342780772,1732140700410,-1530.02,0.00055616,120]
[342780773,1732140700420,-859.85,0.00055616,120]
[342780774,1732140700430,-626.84,0.00055616,120]
[342780775,1732140700440,-500.0,0.00055616,120]
[342780776,1732140700449,-925.63,0.00055616,120]
[342780777,1732140700459,-500.0,0.00055616,120]
[342780778,1732140700469,-1089.2,0.00055616,120]
[342780779,1732140700479,-500.0,0.00055616,120]
[342780780,1732140700488,-246.40116414,0.00055616,120]
[342780781,1732140700497,-746.22,0.00055616,120]
[342780782,1732140700507,-500.0,0.00055616,120]
[342780783,1732140700517,-500.0,0.00055616,120]
[342780784,1732140700527,-1753.04,0.00055616,120]
[342780785,1732140700537,-1615.28,0.00055616,120]
[342780786,1732140700547,-500.0,0.00055616,120]
[342780787,1732140700557,-750.0,0.00055616,120]
[342780788,1732140700567,-500.0,0.00055616,120]
[342780789,1732140700576,-2808.16,0.00055616,120]
[342780790,1732140700586,-500.0,0.00055616,120]
[342780791,1732140700595,-628.55,0.00055616,120]
[342780792,1732140700606,-500.0,0.00055616,120]
[342780793,1732140700615,-195.904106,0.00055616,120]
[342780794,1732140700625,-2720.22,0.00055616,120]
[342780795,1732140700634,-500.0,0.00055616,2]
[342780796,1732140700644,-1040.43,0.00055616,120]
[342780797,1732140700654,-679.38,0.00055616,120]
[342780798,1732140700663,-500.0,0.00055616,120]
[342780799,1732140700673,-500.0,0.00055616,120]
[342780800,1732140700683,-1140.69,0.00055616,120]
[342780801,1732140700692,-500.0,0.00055616,120]
[342780802,1732140700701,-579.85,0.00055616,120]
[342780803,1732140700711,-1233.54,0.00055616,120]
[342780804,1732140700720,-560.33,0.00055616,120]
[342780805,1732140700729,-349.30991799,0.00055616,120]
[342780806,1732140700739,-500.0,0.00055616,120]
[342780807,1732140700748,-1241.7,0.00055616,120]
[342780808,1732140700757,-673.6,0.00055616,120]
[342780809,1732140700766,-1595.79,0.00055616,120]
[342780810,1732140700775,-503.55231322,0.00055616,120]
[342780811,1732140700784,-500.0,0.00055616,120]
[342780812,1732140700794,-500.0,0.00055616,120]
[342780813,1732140700803,-690.2,0.00055616,120]
[342780814,1732140700812,-300.21843142,0.00055616,120]
[342780815,1732140700821,-500.0,0.00055616,120]
[342780816,1732140700831,-614.35,0.00055616,120]
[342780817,1732140700841,-500.0,0.00055616,120]
[342780818,1732140700850,-500.0,0.00055616,120]
[342780819,1732140700859,-500.0,0.00055616,120]
[342780820,1732140700868,-1420.27,0.00055616,120]
[342780821,1732140700878,-500.0,0.00055616,120]
[342780822,1732140700887,-509.44232127,0.00055616,120]
[342780823,1732140700897,-500.0,0.00055616,120]
[342780824,1732140700907,-151.0,0.00055616,120]
[342780825,1732140700917,-588.51413906,0.00055616,120]
[342780826,1732140700926,-501.52904712,0.00055616,120]
[342780827,1732140700936,-500.0,0.00055616,120]
[342780828,1732140700945,-500.0,0.00055616,120]
[342780829,1732140700955,-500.0,0.00055616,120]
[342780830,1732140700966,-500.0,0.00055616,120]
[342780831,1732140700975,-506.47965772,0.00055616,120]
[342780832,1732140700986,-500.0,0.00055616,120]
[342780833,1732140700997,-500.0,0.00055616,120]
[342780834,1732140701006,-1747.91,0.00055616,120]
[342780835,1732140701016,-500.0,0.00055616,120]
[342780836,1732140701026,-326.10477,0.00055616,120]
[342780837,1732140701035,-500.0,0.00055616,120]
[342780838,1732140701249,-503.17406788,0.00055616,120]
[342780839,1732140701273,-500.0,0.00055616,120]
[342780840,1732140701284,-1026.85,0.00055616,120]
[342780841,1732140701293,-500.0,0.00055616,120]
[342780842,1732140701303,-326.10477,0.00055616,120]
[342780843,1732140701312,-500.0,0.00055616,120]
[342780844,1732140701321,-500.0,0.00055616,120]
[342780845,1732140701330,-500.0,0.00055616,120]
[342780846,1732140701339,-500.0,0.00055616,120]
[342780847,1732140701348,-813.38,0.00055616,120]
[342780848,1732140701357,-1929.2,0.00055616,120]
[342780849,1732140701366,-1208.59,0.00055616,120]
[342780850,1732140701375,-554.37578661,0.00055616,120]
[342780851,1732140701385,-509.94,0.00055616,120]
[342780852,1732140701394,-500.0,0.00055616,120]
[342780853,1732140701405,-547.23,0.00055616,120]
[342780854,1732140701415,-543.44577468,0.00055616,120]
[342780855,1732140701424,-500.0,0.00055616,120]
[342780856,1732140701434,-322.22836355,0.00055616,120]
[342780857,1732140701443,-500.0,0.00055616,120]
[342780858,1732140701452,-983.72,0.00055616,120]
[342780859,1732140701461,-2243.95,0.00055616,120]
[342780860,1732140701472,-1133.87,0.00055616,120]
[342780861,1732140701481,-500.0,0.00055616,120]
[342780862,1732140701492,-500.0,0.00055616,120]
[342780863,1732140701501,-500.0,0.00055616,120]
[342780864,1732140701511,-596.8909189,0.00055616,120]
[342780865,1732140701520,-500.0,0.00055616,120]
[342780866,1732140701530,-500.0,0.00055616,120]
[342780867,1732140701540,-500.0,0.00055616,120]
[342780868,1732140701549,-500.0,0.00055616,120]
[342780869,1732140701559,-500.0,0.00055616,120]
[342780870,1732140701569,-500.0,0.00055616,120]
[342780871,1732140701579,-500.0,0.00055616,120]
[342780872,1732140701589,-500.0,0.00055616,120]
[342780873,1732140701598,-500.0,0.00055616,120]
[342780874,1732140701609,-500.0,0.00055616,120]
[342780875,1732140701618,-837.29,0.00055616,120]
[342780876,1732140701629,-601.65,0.00055616,120]
[342780877,1732140701638,-151.0,0.00055616,120]
[342780878,1732140701647,-151.0,0.00055616,120]
[342780879,1732140701661,-500.0,0.00055616,120]
[342780880,1732140701671,-500.0,0.00055616,120]
[342780881,1732140701681,-500.0,0.00055616,120]
[342780882,1732140701690,-500.0,0.00055616,120]
[342780883,1732140701700,-500.0,0.00055616,120]
[342780884,1732140701709,-500.0,0.00055616,120]
[342780885,1732140701718,-203.676932,0.00055616,120]
[342780886,1732140701727,-500.0,0.00055616,120]
[342780887,1732140701738,-1244.02,0.00055616,120]
[342780888,1732140701748,-500.0,0.00055616,120]
[342780889,1732140701758,-500.4594324,0.00055616,120]
[342780890,1732140701767,-500.0,0.00055616,120]
[342780891,1732140701776,-581.48,0.00055616,120]
[342780892,1732140701786,-500.0,0.00055616,120]
[342780893,1732140701795,-500.0,0.00055616,120]
[342780894,1732140701805,-912.77,0.00055616,120]
[342780895,1732140701815,-1640.54,0.00055616,120]
[342780896,1732140701824,-822.59,0.00055616,120]
[342780897,1732140701834,-500.0,0.00055616,120]
[342780898,1732140701843,-500.0,0.00055616,120]
[342780899,1732140701853,-957.41,0.00055616,120]
[342780900,1732140701862,-3305.34,0.00055616,120]
[342780901,1732140701872,-500.0,0.00055616,120]
[342780902,1732140701882,-546.92,0.00055616,120]
[342780903,1732140701891,-500.0,0.00055616,120]
[342780904,1732140701900,-500.0,0.00055616,120]
[342780905,1732140701912,-500.0,0.00055616,120]
[342780906,1732140701921,-1590.28,0.00055616,120]
[342780907,1732140701931,-500.0,0.00055616,120]
[342780908,1732140701940,-500.0,0.00055616,120]
[342780909,1732140701949,-500.0,0.00055616,120]
[342780910,1732140701960,-4503.54,0.00055616,120]
[342780911,1732140701969,-2459.56,0.00055616,120]
[342780912,1732140701979,-500.0,0.00055616,120]
[342780913,1732140701990,-5054.97,0.00055616,120]
[342780914,1732140702000,-500.0,0.00055616,120]
[342780915,1732140702009,-500.0,0.00055616,120]